fUSD/lending_fUSD_20250515
["ID","MTS","AMOUNT","RATE_DAILY","PERIOD"]
[361131074,1747295447820,-2075.36,0.00011116,2]
[361131075,1747295447830,-400.0,0.00011116,2]
[361131076,1747295447839,-400.0,0.00011116,2]
[361131077,1747295447849,-646.48,0.00011116,2]
[361131078,1747295447858,-400.0,0.00011116,2]
[361131079,1747295447868,-879.74,0.00011116,2]
[361131080,1747295447878,-400.0,0.00011116,2]
[361131081,1747295447887,-524.32,0.00011116,2]
[361131082,1747295447897,-429.01845586,0.00011116,2]
[361131083,1747295447909,-1729.26,0.00011116,2]
[361131084,1747295447919,-580.49,0.00011116,2]
[361131085,1747295447928,-400.0,0.00011116,2]
[361131086,1747295447938,-400.0,0.00011116,2]
[361131087,1747295447948,-401.65283925,0.00011116,2]
[361131088,1747295447957,-991.46,0.00011117,2]
[361131089,1747295447967,-151.0,0.00011118,2]
[361131090,1747295447976,-151.0,0.00011118,2]
[361131091,1747295447987,-220.419335,0.00011118,2]
[361131092,1747295447996,-151.784758,0.00011118,2]
[361131093,1747295448006,-151.0,0.00011118,2]
[361131094,1747295448016,-82077.79254885,0.00011131,2]
[361131095,1747295448027,-151.0,0.00011131,2]
[361131096,1747295448037,-151.0,0.00011131,2]
[361131097,1747295448047,-151.0,0.00011131,2]
[361131098,1747295448057,-151.0,0.00011131,2]
[361131099,1747295448066,-151.0,0.00011173,2]
[361131100,1747295448076,-151.0,0.00011173,2]
[361131101,1747295448086,-705.74,0.000112,2]
[361131102,1747295448096,-352.94,0.000112,2]
[361131103,1747295448105,-352.99,0.000112,2]
[361131104,1747295448115,-298.52029272,0.00011288,2]
[361131105,1747295448125,-170.64077927,0.0001129,2]
[361131106,1747295448134,-298.19608344,0.0001129,2]
[361131107,1747295448143,-500.0,0.00011301,2]
[361131108,1747295448155,-200.0,0.00011301,2]
[361131109,1747295448164,-12857.54889153,0.00011303,2]
[361131110,1747295448175,-507.07667291,0.00011373,2]
[361131111,1747295448185,-500.0,0.00011373,2]
[361131112,1747295448195,-500.0,0.00011373,2]
[361131113,1747295448205,-500.0,0.00011373,2]
[361131114,1747295448214,-500.0,0.00011373,2]
[361131115,1747295448224,-500.0,0.00011373,2]
[361131116,1747295448234,-500.0,0.00011373,2]
[361131117,1747295448243,-500.0,0.00011373,2]
[361131118,1747295448252,-502.37137733,0.00011373,2]
[361131119,1747295448262,-500.0,0.00011373,2]
[361131120,1747295448272,-502.63310205,0.00011373,2]
[361131121,1747295448281,-507.55889128,0.00011373,2]
[361131122,1747295448291,-500.78382127,0.00011373,2]
[361131123,1747295448300,-324.01347378,0.00011379,2]
[361131124,1747295448310,-350.0,0.00011381,2]
[361131125,1747295448319,-400.0,0.00011387,2]
[361131126,1747295448329,-471.59,0.00011387,2]
[361131127,1747295448338,-400.0,0.00011387,2]
[361131128,1747295448348,-400.0,0.00011387,2]
[361131129,1747295448357,-400.0,0.00011387,2]
[361131130,1747295448367,-151.0,0.00011387,2]
[361131131,1747295448376,-400.0,0.00011387,2]
[361131132,1747295448385,-400.0,0.00011387,2]
[361131133,1747295448394,-400.0,0.00011387,2]
[361131134,1747295448404,-400.0,0.00011387,2]
[361131135,1747295448414,-400.0,0.00011387,2]
[361131136,1747295448423,-151.0,0.00011387,2]
[361131137,1747295448436,-400.0,0.00011387,2]
[361131138,1747295448446,-151.0,0.00011387,2]
[361131139,1747295448456,-151.0,0.00011387,2]
[361131140,1747295448465,-1098.35,0.00011387,2]
[361131141,1747295448476,-812.75,0.00011387,2]
[361131142,1747295448485,-449.81,0.00011387,2]
[361131143,1747295448495,-586.02,0.00011387,2]
[361131144,1747295448504,-400.0,0.00011387,2]
[361131145,1747295448514,-569.08,0.00011387,2]
[361131146,1747295448524,-507.03,0.00011387,2]
[361131147,1747295448534,-1352.91,0.00011387,2]
[361131148,1747295448543,-875.34,0.00011387,2]
[361131149,1747295448553,-400.0,0.00011387,2]
[361131150,1747295448563,-415.04,0.00011387,2]
[361131151,1747295448572,-924.77,0.00011387,2]
[361131152,1747295448581,-659.01,0.00011387,2]
[361131153,1747295448591,-151.0,0.00011387,2]
[361131154,1747295448605,-300.0,0.00011388,2]
[361131155,1747295448614,-153.539306,0.00011388,2]
[361131156,1747295448624,-151.0,0.00011388,2]
[361131157,1747295448633,-11164.647945,0.00011388,2]
[361131158,1747295448643,-857.8164,0.00011388,2]
[361131159,1747295448653,-151.0,0.00011388,2]
[361131160,1747295448662,-383.77251064,0.00011388,2]
[361131161,1747295448671,-2846.929454,0.00011388,2]
[361131162,1747295448680,-1169.89,0.00011388,2]
[361131163,1747295448689,-400.0,0.00011388,2]
[361131164,1747295448698,-462.98,0.00011388,2]
[361131165,1747295448707,-400.0,0.00011388,2]
[361131166,1747295448716,-400.0,0.00011388,2]
[361131167,1747295448725,-400.0,0.00011388,2]
[361131168,1747295448735,-400.0,0.00011388,2]
[361131169,1747295448743,-1392.62,0.00011388,2]
[361131170,1747295448753,-151.0,0.00011388,2]
[361131171,1747295448762,-501.11,0.00011388,2]
[361131172,1747295448771,-634.73,0.00011388,2]
[361131173,1747295448780,-1033.42,0.00011388,2]
[361131174,1747295448789,-152.54407273,0.00011388,2]
[361131175,1747295448799,-400.0,0.00011388,2]
[361131176,1747295448808,-743.72,0.00011388,2]
[361131177,1747295448817,-189.58,0.00011388,2]
[361131178,1747295448827,-400.0,0.00011388,2]
[361131179,1747295448836,-421.47,0.00011388,2]
[361131180,1747295448845,-400.0,0.00011388,2]
[361131181,1747295448854,-259.6047448,0.00011388,2]
[361131182,1747295448863,-400.0,0.00011388,2]
[361131183,1747295448873,-1034.8,0.00011388,2]
[361131184,1747295448881,-869.54,0.00011388,2]
[361131185,1747295448890,-400.0,0.00011388,2]
[361131186,1747295448899,-423.63,0.00011388,2]
[361131187,1747295448910,-400.0,0.00011388,2]
[361131188,1747295448919,-400.0,0.00011388,2]
[361131189,1747295448928,-539.59523624,0.00011388,2]
[361131190,1747295448938,-494.67,0.00011388,2]
[361131191,1747295448948,-527.82,0.00011388,2]
[361131192,1747295448957,-400.0,0.00011388,2]
[361131193,1747295448966,-481.94,0.00011388,2]
[361131194,1747295448976,-2225.21,0.00011388,2]
[361131195,1747295448986,-754.5,0.00011388,2]
[361131196,1747295448995,-991.46,0.00011388,2]
[361131197,1747295449005,-1374.2,0.00011388,2]
[361131198,1747295449014,-452.24,0.00011388,2]
[361131199,1747295449024,-1037.09,0.00011388,2]
[361131200,1747295449033,-2969.62,0.00011388,2]
[361131201,1747295449043,-867.74,0.00011388,2]
[361131202,1747295449052,-400.0,0.00011388,2]
[361131203,1747295449062,-578.48,0.00011388,2]
[361131204,1747295449071,-1213.82,0.00011388,2]
[361131205,1747295449081,-400.0,0.00011388,2]
[361131206,1747295449090,-400.0,0.00011388,2]
[361131207,1747295449100,-400.0,0.00011388,2]
[361131208,1747295449110,-639.71,0.00011388,2]
[361131209,1747295449119,-400.0,0.00011388,2]
[361131210,1747295449128,-526.16,0.00011388,2]
[361131211,1747295449138,-400.0,0.00011388,2]
[361131212,1747295449147,-400.68,0.00011388,2]
[361131213,1747295449158,-400.0,0.00011388,2]
[361131214,1747295449167,-400.0,0.00011388,2]
[361131215,1747295449178,-400.0,0.00011388,2]
[361131216,1747295449187,-400.0,0.00011388,2]
[361131217,1747295449196,-400.0,0.00011388,2]
[361131218,1747295449206,-400.0,0.00011388,2]
[361131219,1747295449215,-400.0,0.00011388,2]
[361131220,1747295449224,-400.0,0.00011388,2]
[361131221,1747295449235,-400.0,0.00011388,2]
[361131222,1747295449244,-2475.7,0.00011388,2]
[361131223,1747295449254,-400.0,0.00011388,2]
[361131224,1747295449263,-929.03,0.00011388,2]
[361131225,1747295449273,-515.59,0.00011388,2]
[361131226,1747295449282,-400.0,0.00011388,2]
[361131227,1747295449292,-400.0,0.00011388,2]
[361131228,1747295449302,-400.0,0.00011388,2]
[361131229,1747295449311,-543.64,0.00011389,2]
[361131230,1747295449320,-260.38936227,0.00011389,2]
[361131231,1747295449330,-400.0,0.00011389,2]
[361131232,1747295449339,-877.79,0.00011389,2]
[361131233,1747295449548,-400.0,0.00011389,2]
[361131234,1747295449558,-479.59556205,0.00011389,2]
[361131235,1747295449567,-400.0,0.00011389,2]
[361131236,1747295449576,-400.0,0.00011389,2]
[361131237,1747295449586,-491.21,0.00011389,2]
[361131238,1747295449595,-400.0,0.00011389,2]
[361131239,1747295449605,-563.21,0.00011389,2]
[361131240,1747295449615,-501.53,0.00011389,2]
[361131241,1747295449624,-400.0,0.00011389,2]
[361131242,1747295449634,-400.0,0.00011389,2]
[361131243,1747295449643,-400.0,0.00011389,2]
[361131244,1747295449655,-400.0,0.00011389,2]
[361131245,1747295449666,-400.0,0.00011389,2]
[361131246,1747295449675,-580.6,0.00011389,2]
[361131247,1747295449685,-400.0,0.00011389,2]
[361131248,1747295449695,-400.0,0.00011389,2]
[361131249,1747295449706,-403.4273207,0.00011389,2]
[361131250,1747295449716,-400.0,0.00011389,2]
[361131251,1747295449725,-400.0,0.00011389,2]
[361131252,1747295449735,-400.0,0.00011389,2]
[361131253,1747295449745,-500.5,0.00011389,2]
[361131254,1747295449755,-400.0,0.00011389,2]
[361131255,1747295449764,-400.0,0.00011389,2]
[361131256,1747295449774,-567.23,0.00011389,2]
[361131257,1747295449783,-911.19,0.00011389,2]
[361131258,1747295449793,-151.0,0.00011389,2]
[361131259,1747295449803,-400.0,0.00011389,2]
[361131260,1747295449812,-543.50169908,0.00011389,2]
[361131261,1747295449821,-400.0,0.00011389,2]
[361131262,1747295449831,-400.0,0.00011389,2]
[361131263,1747295449841,-400.0,0.00011389,2]
[361131264,1747295449850,-400.0,0.00011389,2]
[361131265,1747295449859,-151.0,0.00011389,2]
[361131266,1747295449869,-151.0,0.00011389,2]
[361131267,1747295449878,-400.0,0.00011389,2]
[361131268,1747295449888,-400.0,0.00011389,2]
[361131269,1747295449897,-400.0,0.00011389,2]
[361131270,1747295449906,-400.0,0.00011389,2]
[361131271,1747295449915,-400.0,0.00011389,2]
[361131272,1747295449924,-355.71788887,0.00011389,2]
[361131273,1747295449933,-400.0,0.00011389,2]
[361131274,1747295449943,-400.0,0.00011389,2]
[361131275,1747295449952,-539.19,0.00011389,2]
[361131276,1747295449961,-400.0,0.00011389,2]
[361131277,1747295449971,-400.0,0.00011389,2]
[361131278,1747295449980,-400.0,0.00011389,2]
[361131279,1747295449989,-453.61,0.00011389,2]
[361131280,1747295449999,-400.0,0.00011389,2]
[361131281,1747295450008,-19964.1396715,0.00011389,2]
[361131282,1747295450018,-400.0,0.00011389,2]
[361131283,1747295450027,-400.0,0.00011389,2]
[361131284,1747295450037,-398.0,0.00011389,2]
[361131285,1747295450046,-400.0,0.00011389,2]
[361131286,1747295450056,-66901.2935026,0.00011389,2]
[361131287,1747295450082,-21321.02952219,0.00011389,2]
[361131288,1747295450118,-1337.615544,0.00011389,2]
[361131289,1747295450130,-61311.25002675,0.00011389,2]
[361131290,1747295450577,-400.0,0.00011114,2]
[361131291,1747295450587,-374.32180859,0.00011389,2]
[361131292,1747295450599,-3459.40473219,0.00011389,2]
[361131293,1747295450611,-16036.51586368,0.00011389,2]
[361131294,1747295450622,-400.0,0.00011389,2]
[361131295,1747295450632,-400.0,0.00011389,2]
[361131296,1747295450642,-400.0,0.00011389,2]
[361131297,1747295450652,-400.0,0.00011389,2]
[361131298,1747295450664,-400.0,0.00011389,2]
[361131299,1747295450674,-151.0,0.00011389,2]
[361131300,1747295450684,-400.0,0.00011389,2]
[361131301,1747295450693,-36723.48518155,0.00011389,2]
[361131302,1747295450706,-1231.437585,0.00011389,2]
[361131303,1747295450814,-512.29127997,0.00011389,2]
[361131304,1747295450924,-3497.73546594,0.00011389,2]
[361131305,1747295450936,-7339.78318862,0.00011389,2]
[361131306,1747295450948,-260.43533064,0.00011389,2]
[361131307,1747295450967,-503.15,0.00011115,2]
[361131308,1747295450977,-5915.30950565,0.00011389,2]
[361131309,1747295450990,-20390.0,0.00011389,2]
[361131310,1747295568539,660.69,8.557e-05,2]
[361131311,1747295593495,-203.56591528,9.919e-05,2]
[361131312,1747295595114,-11.98408472,9.919e-05,2]
[361131313,1747295595139,-215.55,9.968e-05,2]
[361131315,1747295651572,150.0,9.921e-05,7]
[361131317,1747295784215,-2589.077423,0.0001048,2]
[361131318,1747295784239,-200.0,0.00010533,2]
[361131319,1747295784264,-240.9,0.0001056,2]
[361131320,1747295784286,-250.0,0.00010788,2]
[361131321,1747295784310,-200.0,0.00010788,2]
[361131322,1747295784334,-660.69,0.00010821,2]
[361131323,1747295784358,-200.0,0.00010966,2]
[361131324,1747295812108,150.0,0.00010959,2]
[361131325,1747295838860,209.49,0.0001056,2]
[361131326,1747295935965,167.88,0.0001056,2]
[361131327,1747296010570,553.13,0.00010403,2]
[361131328,1747296015896,166.67,0.00010664,2]
[361131329,1747296017226,1000.0,0.00010403,2]
[361131330,1747296138573,661.9445536,0.00010904,2]
[361131331,1747296138730,661.9445536,0.00010932,2]
[361131332,1747296138944,661.9445536,0.00010986,2]
[361131333,1747296181235,591.99,0.0002,30]
[361131334,1747296201988,656.52,0.00021945,30]
[361131335,1747296242538,157.91,0.00010265,2]
[361131336,1747296252223,17055.79,0.00010265,2]
[361131337,1747296331885,150.0,0.00027069,120]
[361131338,1747296432888,2900.0,0.000109,3]
[361131340,1747296575353,172.08,0.0001023,2]
[361131345,1747296631742,-300.0,0.00011013,2]
[361131346,1747296631752,-1195.95898374,0.00011013,2]
[361131347,1747296631763,-4.04101626,0.00011013,2]
[361131348,1747296631773,-300.0,0.00011013,2]
[361131349,1747296631782,-2242.04098374,0.00011014,2]
[361131350,1747296631946,-692.5527292,0.00011014,2]
[361131351,1747296631959,-741.51627297,0.00011014,2]
[361131352,1747296631971,-2274.08618175,0.00011014,2]
[361131353,1747296631982,-2609.49592439,0.00011014,2]
[361131354,1747296631993,-2892.85158688,0.00011014,2]
[361131357,1747296637631,-5134.36882107,0.00011014,2]
[361131359,1747296637642,-218.89998947,0.00011014,2]
[361131361,1747296637651,-150.0,0.00011014,2]
[361131363,1747296637660,-2.54626459,0.00011015,2]
[361131364,1747296637729,-197.45373541,0.00011015,2]
[361131365,1747296637739,-5155.26805086,0.00011015,2]
[361131366,1747296637750,-586.45494914,0.00011015,2]
[361131367,1747296637759,-779.7932684,0.00011015,2]
[361131368,1747296637771,-220.2067316,0.00011015,2]
[361131369,1747296637781,-1614.37194596,0.00011015,2]
[361131370,1747296637792,-1846.72,0.00011015,2]
[361131371,1747296637805,-1538.90805404,0.00011015,2]
[361131372,1747296637814,-661.9445536,0.00011041,2]
[361131373,1747296637824,-31.08408636,0.00011068,2]
[361131374,1747296637835,-630.86046724,0.00011068,2]
[361131375,1747296637845,-666.99052396,0.00011096,2]
[361131376,1747296637967,-197.17773652,0.00011096,2]
[361131377,1747296637977,-279.15226348,0.00011099,2]
[361131378,1747296637988,-330.8283895,0.00011099,2]
[361131403,1747296639937,-6803.91049045,0.00011099,2]
[361131404,1747296639947,-364.28,0.000111,2]
[361131405,1747296639957,-728.56,0.000111,2]
[361131406,1747296639966,-300.0,0.000111,2]
[361131407,1747296639976,-303.24950955,0.000111,2]
[361131408,1747296640032,-696.75049045,0.000111,2]
[361131409,1747296640043,-282.41122471,0.000111,2]
[361131410,1747296640127,-738.58877529,0.000111,2]
[361131411,1747296640136,-151.0,0.00011107,2]
[361131412,1747296640146,-155.0,0.00011107,2]
[361131413,1747296640156,-214.37073772,0.00011107,2]
[361131414,1747296640166,-719.52358209,0.00011107,2]
[361131415,1747296640175,-668.65185757,0.00011107,2]
[361131416,1747296640426,-207.4,0.00011107,2]
[361131417,1747296640436,-232.58521509,0.00011113,2]
[361131418,1747296640446,-413.44697009,0.00011113,2]
[361131419,1747296640456,-515.08,0.00011113,2]
[361131420,1747296640466,-543.62,0.00011113,2]
[361131421,1747296640475,-400.0,0.00011113,2]
[361131422,1747296640485,-402.05161814,0.00011113,2]
[361131423,1747296640495,-400.0,0.00011113,2]
[361131424,1747296640505,-400.0,0.00011113,2]
[361131425,1747296640514,-521.82,0.00011113,2]
[361131426,1747296640524,-466.94,0.00011113,2]
[361131427,1747296640535,-418.36638823,0.00011113,2]
[361131428,1747296640545,-400.0,0.00011113,2]
[361131429,1747296640555,-400.0,0.00011113,2]
[361131430,1747296640565,-400.0,0.00011113,2]
[361131431,1747296640575,-400.0,0.00011113,2]
[361131432,1747296640585,-400.0,0.00011113,2]
[361131433,1747296640594,-400.0,0.00011113,2]
[361131434,1747296640604,-400.0,0.00011113,2]
[361131435,1747296640613,-408.72595855,0.00011113,2]
[361131436,1747296640622,-306.27073165,0.00011113,2]
[361131437,1747296640632,-400.0,0.00011113,2]
[361131438,1747296640641,-490.69,0.00011113,2]
[361131439,1747296640650,-404.96447341,0.00011113,2]
[361131440,1747296640660,-1113.05,0.00011113,2]
[361131441,1747296640669,-400.0,0.00011113,2]
[361131442,1747296640679,-251.49805139,0.00011113,2]
[361131467,1747296642914,-169.026965,0.00011113,2]
[361131468,1747296642924,-447.41506499,0.00011113,2]
[361131469,1747296642933,-400.0,0.00011113,2]
[361131470,1747296642942,-400.0,0.00011113,2]
[361131471,1747296642952,-362.01924614,0.00011113,2]
[361131472,1747296642962,-400.0,0.00011113,2]
[361131473,1747296642971,-400.0,0.00011113,2]
[361131474,1747296642980,-424.17023936,0.00011113,2]
[361131475,1747296642990,-400.0,0.00011113,2]
[361131476,1747296642999,-426.90066957,0.00011113,2]
[361131477,1747296643009,-403.98238531,0.00011113,2]
[361131478,1747296643019,-400.0,0.00011113,2]
[361131479,1747296643028,-400.0,0.00011113,2]
[361131480,1747296643037,-400.0,0.00011113,2]
[361131481,1747296643047,-492.61233004,0.00011113,2]
[361131482,1747296643056,-400.0,0.00011113,2]
[361131483,1747296643066,-527.75,0.00011113,2]
[361131484,1747296643075,-413.79176078,0.00011113,2]
[361131485,1747296643086,-400.0,0.00011113,2]
[361131486,1747296643096,-415.81,0.00011113,2]
[361131487,1747296643104,-400.0,0.00011113,2]
[361131488,1747296643113,-1000.0,0.00011113,2]
[361131489,1747296643123,-207.181585,0.00011113,2]
[361131490,1747296643133,-6772.009679,0.00011113,2]
[361131491,1747296643144,-400.0,0.00011113,2]
[361131493,1747296643154,-482.499844,0.00011113,2]
[361131495,1747296643164,-400.0,0.00011113,2]
[361131497,1747296643172,-400.0,0.00011113,2]
[361131499,1747296643182,-400.0,0.00011113,2]
[361131501,1747296643191,-1072.4,0.00011113,2]
[361131502,1747296643200,-329.86,0.00011113,2]
[361131503,1747296643210,-400.0,0.00011113,2]
[361131504,1747296643219,-400.0,0.00011113,2]
[361131505,1747296643228,-400.0,0.00011113,2]
[361131506,1747296643238,-1276.57,0.00011113,2]
[361131507,1747296643249,-400.0,0.00011113,2]
[361131508,1747296643259,-400.0,0.00011113,2]
[361131509,1747296643268,-459.35,0.00011113,2]
[361131510,1747296643278,-986.76,0.00011113,2]
[361131511,1747296643287,-400.0,0.00011113,2]
[361131512,1747296643300,-400.0,0.00011113,2]
[361131513,1747296643309,-400.0,0.00011113,2]
[361131514,1747296643319,-581.83,0.00011113,2]
[361131515,1747296643329,-400.0,0.00011113,2]
[361131516,1747296643338,-412.19,0.00011113,2]
[361131517,1747296643348,-400.0,0.00011113,2]
[361131518,1747296643358,-400.0,0.00011113,2]
[361131519,1747296643368,-947.31,0.00011113,2]
[361131520,1747296643378,-400.0,0.00011113,2]
[361131521,1747296643388,-400.0,0.00011113,2]
[361131522,1747296643397,-848.76,0.00011113,2]
[361131523,1747296643409,-413.9,0.00011113,2]
[361131524,1747296643417,-400.0,0.00011113,2]
[361131525,1747296643425,-681.75,0.00011113,2]
[361131526,1747296643434,-1312.59,0.00011113,2]
[361131527,1747296643444,-491.98,0.00011113,2]
[361131528,1747296643454,-400.0,0.00011113,2]
[361131529,1747296643463,-400.0,0.00011113,2]
[361131530,1747296643473,-400.0,0.00011113,2]
[361131531,1747296643483,-1078.25,0.00011113,2]
[361131532,1747296643492,-400.0,0.00011113,2]
[361131533,1747296643501,-2154.6,0.00011113,2]
[361131534,1747296643512,-482.38,0.00011113,2]
[361131535,1747296643522,-483.83,0.00011113,2]
[361131536,1747296643532,-400.0,0.00011113,2]
[361131537,1747296643541,-400.0,0.00011113,2]
[361131538,1747296643551,-1362.4,0.00011113,2]
[361131539,1747296643561,-2994.2,0.00011113,2]
[361131540,1747296643570,-400.0,0.00011113,2]
[361131541,1747296643580,-318.20995297,0.00011113,2]
[361131542,1747296643589,-400.0,0.00011113,2]
[361131543,1747296643598,-400.0,0.00011113,2]
[361131544,1747296643607,-867.53,0.00011113,2]
[361131545,1747296643618,-567.75,0.00011113,2]
[361131546,1747296643627,-691.62,0.00011113,2]
[361131547,1747296643637,-400.0,0.00011113,2]
[361131548,1747296643647,-414.55,0.00011113,2]
[361131549,1747296643656,-636.25,0.00011113,2]
[361131550,1747296643666,-400.0,0.00011113,2]
[361131551,1747296643676,-795.43,0.00011113,2]
[361131552,1747296643685,-950.66,0.00011113,2]
[361131553,1747296643695,-174.59104271,0.00011113,2]
[361131554,1747296643704,-942.94,0.00011113,2]
[361131555,1747296643714,-400.0,0.00011113,2]
[361131556,1747296643723,-482.31,0.00011113,2]
[361131557,1747296643733,-400.0,0.00011113,2]
[361131558,1747296643742,-400.0,0.00011113,2]
[361131559,1747296643751,-1112.67,0.00011113,2]
[361131560,1747296643760,-400.0,0.00011113,2]
[361131561,1747296643770,-400.0,0.00011113,2]
[361131562,1747296643782,-400.0,0.00011113,2]
[361131563,1747296643792,-400.0,0.00011113,2]
[361131564,1747296643801,-400.0,0.00011113,2]
[361131565,1747296643810,-400.0,0.00011113,2]
[361131566,1747296643819,-400.0,0.00011113,2]
[361131567,1747296643829,-586.4,0.00011113,2]
[361131568,1747296643838,-540.45,0.00011113,2]
[361131569,1747296643848,-402.66819222,0.00011114,2]
[361131570,1747296643857,-400.0,0.00011114,2]
[361131571,1747296643866,-400.0,0.00011114,2]
[361131572,1747296643879,-400.0,0.00011114,2]
[361131573,1747296643888,-389.61948711,0.00011114,2]
[361131574,1747296643898,-400.0,0.00011114,2]
[361131575,1747296643907,-400.0,0.00011114,2]
[361131576,1747296643917,-657.73,0.00011114,2]
[361131577,1747296643927,-400.0,0.00011114,2]
[361131578,1747296643936,-400.0,0.00011114,2]
[361131579,1747296643945,-400.0,0.00011114,2]
[361131580,1747296643957,-929.45,0.00011114,2]
[361131581,1747296643966,-400.0,0.00011114,2]
[361131582,1747296643975,-400.0,0.00011114,2]
[361131583,1747296643984,-400.0,0.00011114,2]
[361131584,1747296643992,-842.66,0.00011114,2]
[361131585,1747296644001,-482.19,0.00011114,2]
[361131586,1747296644011,-400.0,0.00011114,2]
[361131587,1747296644021,-400.0,0.00011114,2]
[361131588,1747296644032,-400.0,0.00011114,2]
[361131589,1747296644041,-400.0,0.00011114,2]
[361131590,1747296644051,-400.0,0.00011114,2]
[361131591,1747296644061,-400.0,0.00011114,2]
[361131592,1747296644071,-400.0,0.00011114,2]
[361131593,1747296644080,-400.0,0.00011114,2]
[361131594,1747296644090,-400.0,0.00011114,2]
[361131595,1747296644099,-400.0,0.00011114,2]
[361131596,1747296644108,-400.0,0.00011114,2]
[361131597,1747296644117,-400.0,0.00011114,2]
[361131598,1747296644127,-400.0,0.00011114,2]
[361131599,1747296644136,-400.0,0.00011114,2]
[361131600,1747296644146,-543.09,0.00011114,2]
[361131601,1747296644155,-495.89,0.00011114,2]
[361131602,1747296644166,-403.94682666,0.00011114,2]
[361131603,1747296644176,-163.87758131,0.00011114,2]
[361131604,1747296644186,-400.0,0.00011114,2]
[361131605,1747296644197,-400.0,0.00011114,2]
[361131606,1747296644209,-400.0,0.00011114,2]
[361131607,1747296644218,-400.0,0.00011114,2]
[361131608,1747296644227,-400.0,0.00011114,2]
[361131609,1747296644237,-404.16270754,0.00011114,2]
[361131610,1747296644247,-489.7485359,0.00011114,2]
[361131611,1747296644256,-400.0,0.00011114,2]
[361131612,1747296644266,-238.46268706,0.00011114,2]
[361131613,1747296644276,-551.6,0.00011114,2]
[361131614,1747296644285,-400.0,0.00011114,2]
[361131615,1747296644295,-400.0,0.00011114,2]
[361131616,1747296644304,-400.0,0.00011114,2]
[361131617,1747296644313,-414.4764663,0.00011114,2]
[361131618,1747296644323,-400.0,0.00011114,2]
[361131619,1747296644333,-400.0,0.00011114,2]
[361131620,1747296644342,-400.0,0.00011114,2]
[361131621,1747296644352,-432.3,0.00011114,2]
[361131622,1747296644361,-400.0,0.00011114,2]
[361131623,1747296644371,-250.0,0.00011114,2]
[361131624,1747296644380,-400.0,0.00011114,2]
[361131625,1747296644390,-400.0,0.00011114,2]
[361131626,1747296644401,-409.58354168,0.00011114,2]
[361131627,1747296644412,-400.0,0.00011114,2]
[361131628,1747296644422,-400.0,0.00011114,2]
[361131629,1747296644432,-400.0,0.00011114,2]
[361131630,1747296644443,-547.69,0.00011114,2]
[361131631,1747296644457,-400.0,0.00011114,2]
[361131632,1747296644467,-400.0,0.00011114,2]
[361131633,1747296644477,-400.0,0.00011114,2]
[361131634,1747296644486,-882.17,0.00011114,2]
[361131635,1747296644496,-377.10481776,0.00011114,2]
[361131636,1747296644506,-400.0,0.00011114,2]
[361131637,1747296644516,-400.0,0.00011114,2]
[361131638,1747296644525,-400.0,0.00011114,2]